lending/lending_fUSD_20240810
["ID","MTS","AMOUNT","RATE_DAILY","PERIOD"]
[334602509,1723320104608,316.16,8.219e-05,2]
[334602510,1723320127900,1371.28124176,8.219e-05,2]
[334602511,1723320221920,11672.02875824,8.219e-05,2]
[334602512,1723320221945,10000.0,8.219e-05,2]
[334602513,1723320221967,10000.0,8.219e-05,2]
[334602514,1723320221990,6334.14723726,8.219e-05,2]
[334602515,1723320226679,227.7293364,8.219e-05,2]
[334602516,1723320243203,399.13482193,8.219e-05,2]
[334602517,1723320256206,1739.172773,9.615e-05,2]
[334602518,1723320278898,1299.81583141,8.219e-05,2]
[334602519,1723320278920,10000.0,8.219e-05,2]
[334602520,1723320278944,3058.29537663,8.219e-05,2]
[334602521,1723320278984,1000.0,9.64e-05,2]
[334602522,1723320291154,190.84,9.647e-05,2]
[334602523,1723320298260,155.0,9.615e-05,2]
[334602524,1723320304965,1268.81574907,9.615e-05,2]
[334602525,1723320308225,425.76564301,9.615e-05,2]
[334602526,1723320311648,155.0,9.615e-05,2]
[334602527,1723320315891,155.0,9.615e-05,2]
[334602528,1723320316682,227.7293364,9.615e-05,2]
[334602529,1723320318377,155.0,9.615e-05,2]
[334602530,1723320323395,485.60630926,9.615e-05,2]
[334602531,1723320327399,363.99559119,9.615e-05,2]
[334602532,1723320331228,693.15925033,9.615e-05,2]
[334602533,1723320333935,155.0,9.615e-05,2]
[334602534,1723320333962,1309.6907768,9.615e-05,2]
[334602535,1723320342343,201.10196731,9.615e-05,2]
[334602536,1723320342363,36.55557828,9.615e-05,2]
[334602537,1723320344571,1223.35682624,9.615e-05,2]
[334602538,1723320355100,1284.65790957,9.615e-05,2]
[334602540,1723320363998,155.0,9.615e-05,2]
[334602541,1723320368383,871.98206993,9.615e-05,2]
[334602542,1723320368920,6428.44761598,9.615e-05,2]
[334602543,1723320368941,3079.37297932,9.615e-05,2]
[334602544,1723320371192,291.51080099,9.615e-05,2]
[334602545,1723320380662,411.73782647,9.615e-05,2]
[334602546,1723320394962,1268.15920367,9.615e-05,2]
[334602547,1723320404654,155.0,9.615e-05,2]
[334602548,1723320409442,1371.28124176,9.615e-05,2]
[334602549,1723320416404,363.80678923,9.615e-05,2]
[334602550,1723320417674,227.7293364,9.615e-05,2]
[334602551,1723320436986,897.51477935,9.615e-05,2]
[334602553,1723320442904,155.0,9.615e-05,2]
[334602554,1723320447585,1223.67539123,9.615e-05,2]
[334602555,1723320448395,485.60630926,9.615e-05,2]
[334602556,1723320451185,69.60534232,9.615e-05,2]
[334602557,1723320451205,623.55390801,9.615e-05,2]
[334602558,1723320452913,9376.44609199,9.615e-05,2]
[334602559,1723320452933,779.33249461,9.615e-05,2]
[334602560,1723320453402,159.01284171,9.615e-05,2]
[334602561,1723320469906,4844.25705738,9.615e-05,2]
[334602562,1723320471944,155.21309104,9.615e-05,2]
[334602563,1723320482671,411.87190944,9.615e-05,2]
[334602564,1723320486196,291.51080099,9.615e-05,2]
[334602565,1723320486969,1309.89969901,9.615e-05,2]
[334602566,1723320491640,-250.0,9.653e-05,2]
[334602567,1723320491664,-300.0,9.662e-05,2]
[334602568,1723320491685,-300.0,9.662e-05,2]
[334602569,1723320491707,-229.82,9.662e-05,2]
[334602570,1723320492211,760.1334565,9.615e-05,2]
[334602571,1723320494407,200.99471399,9.615e-05,2]
[334602572,1723320502157,155.07450981,9.615e-05,2]
[334602573,1723320510193,227.7293364,9.615e-05,2]
[334602574,1723320533695,-2300.56020169,9.662e-05,2]
[334602575,1723320533739,-1787.33897181,9.662e-05,2]
[334602576,1723320533768,-513.22122988,9.663e-05,2]
[334602577,1723320533802,-2300.56020169,9.663e-05,2]
[334602578,1723320533884,-2300.56020169,9.663e-05,2]
[334602579,1723320533918,-2300.56020169,9.663e-05,2]
[334602580,1723320533963,-1003.08869292,9.663e-05,2]
[334602581,1723320537216,692.73056587,9.615e-05,2]
[334602582,1723320545143,12.23952325,9.615e-05,2]
[334602583,1723320545164,491.12407609,9.615e-05,2]
[334602587,1723320582937,655.5,9.615e-05,2]
[334602588,1723320595314,667.98,8.219e-05,2]
[334602589,1723320612989,-3109.91947213,9.663e-05,2]
[334602590,1723320613010,-250.84,9.776e-05,2]
[334602591,1723320613032,-300.0,9.999e-05,2]
[334602592,1723320613053,-413.08367421,0.0001,2]
[334602593,1723320613076,-162.7027261,0.0001,2]
[334602594,1723320613096,-1050.50799183,0.0001,2]
[334602595,1723320617935,2898.34205964,9.615e-05,2]
[334602596,1723320617957,10000.0,9.615e-05,2]
[334602597,1723320617977,7490.13813679,9.615e-05,2]
[334602599,1723320631711,-161.02,0.00010158,2]
[334602600,1723320631720,-161.02,0.00010162,2]
[334602601,1723320631730,-161.02,0.00010167,2]
[334602602,1723320631739,-161.02,0.00010172,2]
[334602603,1723320631749,-200.0,0.00010172,2]
[334602604,1723320631760,-9477.65919082,0.00010172,2]
[334602605,1723320631772,-161.02,0.00010176,2]
[334602606,1723320631783,-161.02,0.00010181,2]
[334602607,1723320631793,-161.02,0.00010185,2]
[334602608,1723320631803,-161.02,0.0001019,2]
[334602609,1723320631813,-150.99,0.00010195,2]
[334602610,1723320631822,-499.99,0.00010195,2]
[334602611,1723320631831,-161.02,0.00010195,2]
[334602612,1723320631842,-161.02,0.00010199,2]
[334602613,1723320631851,-161.02,0.00010204,2]
[334602614,1723320631860,-161.02,0.00010209,2]
[334602615,1723320631869,-667.98,0.00010463,2]
[334602616,1723320631879,-1500.0,0.00010731,2]
[334602617,1723320631888,-150.0,0.00010781,2]
[334602618,1723320631898,-150.0,0.00010836,2]
[334602619,1723320631907,-1000.0,0.00010844,2]
[334602620,1723320631916,-190.84,0.00010852,2]
[334602621,1723320631926,-150.0,0.00010854,2]
[334602622,1723320631937,-21745.0,0.00010856,2]
[334602623,1723320631946,-5835.0,0.00010856,2]
[334602624,1723320631956,-1204.0,0.00010856,2]
[334602625,1723320631966,-5131.0,0.00010856,2]
[334602626,1723320631976,-150.0,0.00010865,2]
[334602628,1723320631985,-1317.52234,0.0001089,2]
[334602630,1723320631995,-583.518,0.0001089,2]
[334602632,1723320632004,-259.8342,0.00010897,2]
[334602634,1723320632013,-2977.5183,0.00010897,2]
[334602636,1723320632023,-20944.24846,0.000109,2]
[334602638,1723320632033,-3530.8508,0.000109,2]
[334602640,1723320632042,-167.73613215,0.000109,2]
[334602642,1723320632052,-1000.0,0.000109,2]
[334602644,1723320632061,-1000.0,0.000109,2]
[334602646,1723320632070,-4993.54740259,0.000109,2]
[334602648,1723320632080,-11495.0,0.000109,5]
[334602650,1723320632089,-7500.0,0.000109,2]
[334602652,1723320632099,-358.52449878,0.000109,2]
[334602654,1723320632109,-1027.0,0.000109,2]
[334602656,1723320632119,-473.80107402,0.000109,2]
[334602658,1723320632128,-4958.6828,0.000109,2]
[334602660,1723320632137,-271.74656716,0.00010906,2]
[334602661,1723320632146,-150.0,0.00010917,2]
[334602663,1723320632156,-150.0,0.00010928,2]
[334602665,1723320632165,-250.0,0.00010959,2]
[334602667,1723320632174,-215.9049831,0.00010973,2]
[334602669,1723320632183,-1461.93213714,0.00010982,2]
[334602671,1723320632193,-1500.0,0.00010987,2]
[334602673,1723320632203,-1623.2493791,0.00010997,2]
[334602675,1723320632212,-1505.3514675,0.00010997,2]
[334602677,1723320632221,-1849.477768,0.00010997,2]
[334602678,1723320632230,-1172.6967001,0.00010997,2]
[334602680,1723320632239,-1284.8254373,0.00010997,2]
[334602682,1723320632248,-397.71801839,0.00010997,2]
[334602684,1723320632259,-150.01,0.00010999,2]
[334602686,1723320632268,-2953.55232105,0.00010999,2]
[334602688,1723320632276,-420.0,0.00010999,2]
[334602690,1723320632286,-37658.65600098,0.00011,2]
[334602693,1723320632418,-184.8326814,0.00011,2]
[334602694,1723320632427,-3838.52770421,0.00011,2]
[334602705,1723320637877,-0.21418611,0.00011,2]
[334602710,1723320639814,-78665.999395,0.00011,2]
[334602711,1723320640459,-681.26488617,0.00011,2]
[334602733,1723320642731,-613.09825755,0.00011,2]
[334602756,1723320645919,-1434.90208133,0.00011,2]
[334602757,1723320646076,-399.1,0.00011,2]
[334602760,1723320658912,1371.28124176,8.219e-05,2]
[334602761,1723320703711,227.7293364,8.219e-05,2]
[334602762,1723320705247,860.1196,9.563e-05,2]
[334602763,1723320706968,50.73168505,8.219e-05,2]
[334602764,1723320706990,10000.0,8.219e-05,2]
[334602765,1723320707011,10000.0,8.219e-05,2]
[334602766,1723320707035,10000.0,8.219e-05,2]
[334602767,1723320707057,10000.0,8.219e-05,2]
[334602768,1723320707078,10000.0,8.219e-05,2]
[334602769,1723320707101,10000.0,8.219e-05,2]
[334602770,1723320707122,10000.0,8.219e-05,2]
[334602771,1723320707143,10000.0,8.219e-05,2]
[334602772,1723320707164,10000.0,8.219e-05,2]
[334602773,1723320707186,10000.0,8.219e-05,2]
[334602774,1723320707207,10000.0,8.219e-05,2]
[334602775,1723320707228,10000.0,8.219e-05,2]
[334602776,1723320707251,10000.0,8.219e-05,2]
[334602777,1723320707272,10000.0,8.219e-05,2]
[334602778,1723320707293,10000.0,8.219e-05,2]
[334602779,1723320707314,10000.0,8.219e-05,2]
[334602780,1723320707336,10000.0,8.219e-05,2]
[334602781,1723320707357,10000.0,8.219e-05,2]
[334602782,1723320707378,3631.66011139,8.219e-05,2]
[334602783,1723320719942,6368.33988861,8.219e-05,2]
[334602784,1723320719969,8787.75450735,8.219e-05,2]
[334602785,1723320720635,509.90429173,8.219e-05,2]
[334602786,1723320726482,702.34120092,8.219e-05,2]
[334602787,1723320726507,186.36288662,8.219e-05,2]
[334602789,1723320793707,227.7293364,8.219e-05,2]
[334602790,1723320798951,9585.90777698,8.219e-05,2]
[334602791,1723320798973,10000.0,8.219e-05,2]
[334602792,1723320798995,10000.0,8.219e-05,2]
[334602793,1723320799018,154096.48401946,8.219e-05,2]
[334602794,1723320802945,872.12298117,8.219e-05,2]
[334602795,1723320806952,20388.48019643,8.219e-05,2]
[334602796,1723320815634,1284.86660241,8.219e-05,2]
[334602797,1723320823773,150.0,8.219e-05,2]
[334602798,1723320823794,291.35588901,8.219e-05,2]
[334602799,1723320823818,2124.09349152,8.219e-05,2]
[334602800,1723320824007,7577.72096623,8.219e-05,2]
[334602801,1723320832343,150.0,8.219e-05,2]
[334602802,1723320832363,150.0,8.219e-05,2]
[334602803,1723320832384,125.83516653,8.219e-05,2]
[334602805,1723320872707,227.7293364,8.219e-05,2]
[334602806,1723320879436,363.96025495,8.219e-05,2]
[334602807,1723320884292,155.33500095,8.219e-05,2]
[334602808,1723320884414,159.03851619,8.219e-05,2]
[334602809,1723320891370,155.0,8.219e-05,2]
[334602810,1723320891493,1336.65591324,8.219e-05,2]
[334602811,1723320897984,155.0,8.219e-05,2]
[334602812,1723320899234,693.09243413,8.219e-05,2]
[334602813,1723320899310,973.42537251,8.219e-05,2]
[334602814,1723320899920,155.0,8.219e-05,2]
[334602815,1723320902538,155.0,8.219e-05,2]
[334602816,1723320906652,3070.25593273,8.219e-05,2]
[334602817,1723320906720,291.55862315,8.219e-05,2]
[334602818,1723320908130,1223.55498284,8.219e-05,2]
[334602819,1723320909428,78612.005926,8.219e-05,2]
[334602820,1723320910748,760.2567842,8.219e-05,2]
[334602821,1723320913001,612.34006513,8.219e-05,2]
[334602822,1723320927978,155.0,8.219e-05,2]
[334602823,1723320965710,227.7293364,8.219e-05,2]
[334602824,1723320974320,973.42537251,8.219e-05,2]
[334602825,1723321072333,973.42537251,8.219e-05,2]
[334602826,1723321158325,816.16093367,8.219e-05,2]
[334602827,1723321270970,748.56,8.219e-05,2]
[334602828,1723321536405,18000.0,9.5e-05,2]
[334602830,1723321555390,979.28008244,6.94e-05,2]
[334602834,1723321731831,275.46440461,8.412e-05,2]
[334602835,1723321732580,1257.28030912,8.412e-05,2]
[334602851,1723321778520,711.13,8.219e-05,2]
[334602860,1723321831859,-400.0,9.704e-05,2]
[334602861,1723321831869,-173.55877246,9.705e-05,2]
[334602862,1723321831879,-36.12122752,9.705e-05,2]
[334602863,1723321831890,-213.87877248,9.705e-05,2]
[334602864,1723321831899,-207.76,9.789e-05,2]
[334602865,1723321831908,-205.0,9.8e-05,2]
[334602866,1723321831918,-76.7391107,9.841e-05,2]
[334602867,1723321831929,-423.2608893,9.841e-05,2]
[334602868,1723321831939,-200.03,9.841e-05,2]
[334602869,1723321831948,-3495.01305142,9.933e-05,2]
[334602870,1723321831963,-439.42212592,9.933e-05,2]
[334602871,1723321831974,-7871.96110263,9.933e-05,2]
[334602872,1723321831986,-2613.10872722,9.933e-05,2]
[334602873,1723321831997,-542.67878054,9.933e-05,2]
[334602874,1723321832008,-436.06621227,9.933e-05,2]
[334602875,1723321832017,-36.46962278,9.933e-05,5]
[334602876,1723321832028,-1618.07633989,9.933e-05,5]
[334602877,1723321832040,-1154.86373683,9.933e-05,5]
[334602878,1723321832051,-463.05,9.933e-05,5]
[334602879,1723321832062,-4259.61070056,9.933e-05,5]
[334602880,1723321832073,-200037.03382888,9.933e-05,5]
[334602881,1723321832083,-189.11,9.954e-05,2]
[334602882,1723321832096,-1370.33350653,9.962e-05,2]
[334602883,1723321832105,-600.0,9.963e-05,2]
[334602884,1723321832115,-603.41,9.978e-05,2]
[334602885,1723321832124,-1050.50799183,0.0001,2]
[334602887,1723321832135,-179.22409765,0.0001,2]
[334602889,1723321832144,-162.7027261,0.0001,2]
[334602890,1723321832154,-550.0,0.0001,2]
[334602891,1723321832164,-245.49,0.00010093,2]
[334602892,1723321832175,-8628.07,0.00010093,2]
[334602893,1723321832184,-211.58521204,0.00010196,2]
[334602895,1723321832195,-711.13,0.00010463,2]
[334602897,1723321832204,-1112.30181029,0.0001078,2]
[334602899,1723321832214,-150.0,0.00010833,2]
[334602901,1723321832223,-150.0,0.00010844,2]
[334602903,1723321832232,-150.0,0.00010863,2]
[334602905,1723321832241,-150.0,0.00010864,2]
[334602907,1723321832251,-150.0,0.00010879,2]
[334602909,1723321832261,-1097.93528,0.0001089,2]
[334602911,1723321832270,-938.4516,0.00010899,2]
[334602913,1723321832279,-8703.7603,0.00010899,2]
[334602915,1723321832288,-4494.19266234,0.00010899,2]
[334602917,1723321832298,-4416.10080271,0.000109,2]
[334602918,1723321832309,-4118.47040795,0.000109,2]
[334602919,1723321832320,-792.5901174,0.000109,2]
[334602920,1723321832332,-1974.8225,0.000109,2]
[334602921,1723321832343,-876.11960137,0.000109,2]
[334602922,1723321832355,-1570.52069261,0.000109,2]
[334602923,1723321832366,-540.06140177,0.000109,2]
[334602924,1723321832377,-340.78735789,0.000109,2]
[334602925,1723321832389,-727.39559761,0.000109,2]
[334602926,1723321832400,-14267.13152069,0.000109,2]
[334602927,1723321832410,-167.33930202,0.000109,2]
[334602928,1723321832419,-7500.0,0.000109,2]
[334602929,1723321832428,-414.57593975,0.000109,2]
[334602930,1723321832437,-1131.0,0.000109,2]
[334602931,1723321832447,-334.6228655,0.000109,2]
[334602932,1723321832456,-150.0,0.00010903,2]
[334602933,1723321832465,-400.0,0.00010917,2]
[334602934,1723321832475,-200.0,0.00010973,2]
[334602935,1723321832485,-839.526,0.0001099,2]
[334602936,1723321832494,-5119.0,0.0001099,2]
[334602937,1723321832503,-719.552,0.0001099,2]
[334602938,1723321832512,-2872.4704307,0.00010997,2]
[334602939,1723321832521,-2048.7155074,0.00010997,2]
[334602940,1723321832532,-1245.1532743,0.00010997,2]
[334602941,1723321832542,-353.52712746,0.00010997,2]
[334602942,1723321832551,-1925.67193048,0.00010999,2]
[334602943,1723321832561,-1518.02409611,0.00010999,2]
[334602944,1723321832570,-28767.21794565,0.00011,2]
[334602948,1723321838042,-19851.5830375,0.00011,2]
[334602949,1723321838107,-11291.99679093,0.00011,2]
[334602950,1723321838172,-994.53623725,0.00011,2]
[334602951,1723321838337,-148744.44169711,0.00011,2]
[334602952,1723321838349,-38733.76037352,0.00011,2]
[334602953,1723321838359,-149661.16986465,0.00011,2]
[334602954,1723321838368,-109595.46561578,0.00011,2]
[334602955,1723321838378,-1000.0,0.00011,2]
[334602956,1723321838388,-1000.0,0.00011,2]
[334602957,1723321838397,-1000.0,0.00011,2]
[334602958,1723321838406,-1000.0,0.00011,2]
[334602959,1723321838415,-292.93477054,0.00011,2]
[334602960,1723321838425,-4804.0,0.00011,2]
[334602961,1723321838435,-250.0,0.00011,2]
[334602962,1723321838444,-32650.13002892,0.00011,2]
[334602963,1723321838530,-25299.15984209,0.00011,2]
[334602969,1723321839991,-1092.27862809,0.00011,2]
[334602970,1723321840051,-1300.57762487,0.00011,2]
[334602971,1723321840063,-392.85540526,0.00011,2]
[334602972,1723321840112,-891.51412651,0.00011,2]
[334602973,1723321840175,-21801.74223655,0.00011,2]
[334602974,1723321840187,-2430.53542353,0.00011,2]
[334602975,1723321840200,-62928.43766605,0.00011,2]
[334602976,1723321840209,-142099.89692184,0.00011,2]
[334602977,1723321840237,-1225.9364753,0.00011,2]
[334602978,1723321840248,-1548.34307602,0.00011,2]
[334602979,1723321840258,-509.73860691,0.00011,2]
[334602980,1723321840270,-649.02,0.00011,2]
[334602981,1723321840280,-2409.35153101,0.00011,2]
[334603062,1723321841747,-644.10641409,0.00011,2]
[334603063,1723321841758,-3291.39065368,0.00011,2]
[334603064,1723321841781,-1396.69046004,0.00011,2]
[334603065,1723321842960,-3401.48620004,0.00011,2]
[334603066,1723321842971,-800.90047991,0.00011,2]
[334603067,1723321842982,-627.59413878,0.00011,2]
[334603073,1723321843836,-2425.04959483,0.00011,2]
[334603074,1723321843848,-1968.40098272,0.00011,2]
[334603075,1723321843859,-869.95370905,0.00011,2]
[334603076,1723321843871,-778.84,0.00011,2]
[334603077,1723321843887,-478.6711612,0.00011,2]
[334603078,1723321846107,-417.47216,0.00011,2]
[334603079,1723321846118,-612.67,0.00011,2]
[334603080,1723321846166,-9789.77510328,0.00011,2]
[334603081,1723321846179,-2736.68052682,0.00011,2]
[334603082,1723321846230,-3570.01645347,0.00011,2]
[334603083,1723321846241,-273.72011597,0.00011,2]
[334603084,1723321846252,-307.982,0.00011,2]
[334603085,1723321846263,-2990.50036596,0.00011,2]
[334603095,1723321846471,-2836.5862804,0.00011,2]
[334603098,1723321846482,-363.04061975,0.00011,2]
[334603100,1723321846493,-413.1192,0.00011,2]
[334603102,1723321846504,-281.00881241,0.00011,2]
[334603474,1723322301475,674.44,8.315e-05,2]
[334603478,1723322790033,150.0,8.219e-05,2]
[334603479,1723322790061,490.71,8.219e-05,2]
[334603481,1723322858098,-733.4882,9.833e-05,2]
[334603482,1723322858125,-296.38383182,9.962e-05,2]
[334603483,1723322858146,-1371.01361887,9.962e-05,2]
[334603484,1723322858168,-250.0,0.00010118,2]
[334603485,1723322858189,-150.0,0.00010137,2]
[334603486,1723322858212,-25577.99766166,0.00010159,2]
[334603487,1723322858233,-1775.33,0.00010159,2]
[334603488,1723322858254,-1420.93,0.00010164,2]
[334603489,1723322858276,-760.0,0.00010223,2]
[334603490,1723322858297,-640.71,0.00010479,2]
[334603491,1723322858318,-22161.83,0.00010479,2]
[334603492,1723322858339,-203.6,0.0001065,2]
[334603493,1723322858360,-300.0,0.00010779,2]
[334603494,1723322858380,-1280.93,0.00010779,2]
[334603495,1723322858400,-1103.43798343,0.0001078,2]
[334603496,1723322858424,-1089.02911453,0.0001078,2]
[334603497,1723322858444,-1072.16330751,0.0001078,2]
[334603498,1723322858466,-150.99,0.0001078,2]
[334603499,1723322858490,-267.8631,0.000109,2]
[334603500,1723322858510,-736.5947,0.000109,2]
[334603501,1723322858537,-150.0,0.00010989,2]
[334603502,1723322858557,-1052.871,0.0001099,2]
[334603503,1723322858577,-676.068,0.0001099,2]
[334603504,1723322858598,-555.0,0.0001099,2]
[334603505,1723322858618,-1203.0,0.0001099,2]
[334603506,1723322858640,-9238.369,0.0001099,2]
[334603507,1723322858661,-738.859,0.0001099,2]
[334603508,1723322858681,-1054.0,0.0001099,2]
[334603509,1723322858702,-838.618366,0.00010997,2]
[334603510,1723322858724,-5521.2495431,0.00010997,2]
[334603511,1723322858745,-3937.8889469,0.00010997,2]
[334603512,1723322858767,-2390.8228185,0.00010997,2]
[334603513,1723322858790,-1925.67193048,0.00010999,2]
[334603514,1723322858813,-5687.03530695,0.00011,2]
[334603515,1723322858833,-44213.8732109,0.00011,2]
[334603516,1723322858854,-1000.0,0.00011,2]
[334603517,1723322858874,-1000.0,0.00011,2]
[334603518,1723322858894,-1000.0,0.00011,2]
[334603519,1723322858914,-1000.0,0.00011,2]
[334603520,1723322858934,-1000.0,0.00011,2]
[334603521,1723322858954,-1000.0,0.00011,2]
[334603522,1723322858973,-410.0,0.00011,2]
[334603523,1723322858993,-170.42026434,0.00011,2]
[334603524,1723322859012,-449.41821093,0.00011,2]
[334603525,1723322859031,-181.80939491,0.00011,2]
[334603526,1723322859052,-220.30692265,0.00011,2]
[334603527,1723322859072,-1050.50799183,0.00011,2]
[334603528,1723322859092,-2000.0,0.00011,2]
[334603529,1723322859112,-2000.0,0.00011,2]
[334603530,1723322859132,-200.0,0.00011,2]
[334603531,1723322859155,-180.4128,0.00011,2]
[334603532,1723322859177,-914.94607,0.00011,2]
[334603533,1723322859200,-2854.143,0.00011,2]
[334603534,1723322859220,-336.0,0.00011,2]
[334603535,1723322859242,-200.0,0.00011,2]
[334603536,1723322859262,-684.0,0.00011,2]
[334603537,1723322859283,-286.24,0.00011,2]
[334603538,1723322871079,360.8257,0.00011,2]
[334603539,1723322900388,1143.39331009,0.0001078,2]
[334603540,1723322935357,170.47760762,0.0001078,2]
[334603541,1723322941101,243.3,0.00011,2]
[334603542,1723322942440,550.0,0.0001,2]
[334603543,1723322963189,969.8061,0.00010059,2]
[334603544,1723322971028,1050.50799183,0.0001078,2]
[334603545,1723322979128,449.50211901,0.0001078,2]
[334603546,1723323008798,153.0,0.0001099,2]
[334603547,1723323009289,157.364,0.0001099,2]
[334603548,1723323013792,243.915,0.0001099,2]
[334603549,1723323014859,150.178,0.0001099,2]
[334603550,1723323018382,181.73715335,0.0001078,2]
[334603551,1723323019408,285.861,0.0001099,2]
[334603552,1723323028697,3902.8380639,0.00010997,2]
[334603564,1723323032123,-150.0,0.00011,2]
[334603565,1723323032132,-247.09821615,0.00011,2]
[334603566,1723323032142,-173.63189527,0.00011,2]
[334603567,1723323032152,-188.23798921,0.00011,2]
[334603568,1723323032161,-227.85060182,0.00011,2]
[334603569,1723323032171,-156.90327454,0.00011,2]
[334603570,1723323032180,-219.37405464,0.00011,2]
[334603571,1723323032190,-1000.0,0.00011005,2]
[334603572,1723323032199,-392.0,0.00011051,2]
[334603573,1723323032210,-196.4,0.00011094,2]
[334603574,1723323032219,-181.76294196,0.00011105,2]
[334603575,1723323032229,-6997.27635221,0.00011105,2]
[334603576,1723323032242,-313.57105066,0.00011105,2]
[334603577,1723323032254,-3834.18185265,0.00011105,2]
[334603578,1723323032281,1061.27253091,0.00010777,2]
[334603579,1723323032293,-262.46590742,0.00011105,2]
[334603580,1723323032305,-440.30972962,0.00011105,2]
[334603581,1723323032317,-545.15058203,0.00011105,2]
[334603582,1723323032328,-655.60712406,0.00011105,2]
[334603583,1723323032340,-2432.35162835,0.00011105,2]
[334603584,1723323032350,-365.72794415,0.00011105,2]
[334603585,1723323032359,-85.13389093,0.00011105,2]
[334603586,1723323032380,-69.86610907,0.00011105,2]
[334603587,1723323032390,-155.0,0.00011105,2]
[334603588,1723323032399,-187.86317293,0.00011105,2]
[334603589,1723323032409,-297.44821405,0.00011105,2]
[334603590,1723323032418,-155.0,0.00011105,2]
[334603591,1723323032427,-921.42075982,0.00011105,2]
[334603592,1723323032437,-686.91534467,0.00011105,2]
[334603593,1723323032446,-804.33297554,0.00011105,2]
[334603594,1723323032456,-155.10578011,0.00011105,2]
[334603595,1723323032467,-962.32288894,0.00011105,2]
[334603596,1723323032478,-685.99270042,0.00011105,2]
[334603597,1723323032487,-155.0,0.00011105,2]
[334603598,1723323032496,-2898.52349871,0.00011105,2]
[334603599,1723323032508,-7003.78730069,0.00011105,2]
[334603600,1723323032519,-5819.45430805,0.00011105,2]
[334603601,1723323032528,-2341.49151467,0.00011105,2]
[334603602,1723323032537,-10532.64512729,0.00011105,2]
[334603603,1723323032549,-9269.56154788,0.00011105,2]
[334603604,1723323032559,-270.54243034,0.00011105,2]
[334603605,1723323032568,-2275.99198575,0.00011105,2]
[334603606,1723323032577,-2186.1199271,0.00011105,2]
[334603607,1723323032587,-3979.10104429,0.00011105,2]
[334603608,1723323032596,-2421.580841,0.00011105,2]
[334603614,1723323038177,-306.42367944,0.00011105,2]
[334603615,1723323038188,-2674.99689904,0.00011105,2]
[334603616,1723323038198,-2.5065458,0.00011105,2]
[334603617,1723323038234,-552.62070963,0.00011105,2]
[334603618,1723323038246,-655.43194,0.00011105,2]
[334603619,1723323038257,-514.74031448,0.00011105,2]
[334603620,1723323038345,-1115.39246083,0.00011105,2]
[334603621,1723323038355,-433.77471447,0.00011105,2]
[334603622,1723323038383,170.47760762,0.0001099,2]
[334603623,1723323038457,-5008.98088915,0.00011105,2]
[334603624,1723323038468,-2502.21177786,0.00011105,2]
[334603625,1723323038479,-3120.60802206,0.00011105,2]
[334603626,1723323038488,-2491.48012761,0.00011105,2]
[334603627,1723323038497,-719.8919336,0.00011105,2]
[334603628,1723323038507,-328.20287838,0.00011105,2]
[334603629,1723323038518,-1275.45690478,0.00011105,2]
[334603630,1723323038527,-1254.43723838,0.00011105,2]
[334603631,1723323038537,-2111.39291129,0.00011105,2]
[334603632,1723323038547,-573.14593818,0.00011105,2]
[334603633,1723323038558,-1500.0,0.00011105,2]
[334603634,1723323038567,-1206.44108188,0.00011105,2]
[334603635,1723323038577,-155.0406408,0.00011105,2]
[334603636,1723323038586,-829.99458691,0.00011105,2]
[334603637,1723323038596,-502.17893042,0.00011105,2]
[334603638,1723323038605,-998.20168991,0.00011105,2]
[334603639,1723323038614,-915.31375,0.00011105,2]
[334603640,1723323038625,-155.0,0.00011105,2]
[334603641,1723323038634,-155.0,0.00011105,2]
[334603642,1723323038643,-633.69446909,0.00011105,2]
[334603643,1723323038653,-1050.71677233,0.00011105,2]
[334603644,1723323038663,-1247.1583068,0.00011105,2]
[334603645,1723323038672,-313.68115763,0.00011105,2]
[334603646,1723323038681,-532.21011992,0.00011105,2]